{"text_format":"3","workbook":"xlsx","n_sheets":4,"sheets":["Registro progetti","Diagramma di Gantt","Informazioni","Dati grafico dinamici nascosto"],"not_rendered":{"charts":1,"defined_names":8},"read":"whole","date_system":"1900"}

{"sheet":"Registro progetti","index":0,"n_rows":22,"n_cols":7,"rows_kept":22}
["Creare un registro progetti in questo foglio di lavoro.\nIl titolo di questo foglio di lavoro si trova nella cella B1. \nLe informazioni su come usare questo foglio di lavoro, con istruzioni per le utilità per la lettura dello schermo, si trovano nel foglio di lavoro Informazioni.","Registro progetti"]
["Immettere la data di inizio manualmente nella cella D2 o usare la formula di esempio del modello per trovare la data minima nella colonna dell’attività cardine della tabella delle attività cardine seguente.",null,"Data di inizio:",{"$f":"IFERROR(IF(MIN(Milestones[Data di inizio])=0,TODAY(),MIN(Milestones[Data di inizio])),TODAY())","v":"2018-07-17"}]
["Immettere la data di fine manualmente nella cella D3 o usare la formula di esempio del modello per trovare la data massima nella colonna dell’attività cardine della tabella delle attività cardine seguente.",null,"Data di fine:",{"$f":"IFERROR(IF(MAX(Milestones[Data di fine])=0,TODAY(),MAX(Milestones[Data di fine])),TODAY())","v":"2019-02-12"}]
["Le informazioni sulle colonne della tabella delle attività cardine si trovano nelle celle da B4 a G4.","Immettere una serie sequenziale di numeri nella colonna seguente.","Immettere la data di inizio per l’attività cardine o l’attività nella colonna seguente.","Immettere la data di fine per l’attività cardine o l’attività nella colonna seguente.","Immettere la descrizione dell’attività cardine e/o attività nella colonna seguente. Questa descrizione verrà visualizzata nel Grafico di progetto.","Calcolato automaticamente. La data seguente, sotto questa colonna, viene usata per la creazione di grafici delle attività cardine e attività.","Calcolato automaticamente. Durata di ogni compito "]
["Le intestazioni di tabella si trovano nelle celle da B5 a G5. \nSono presenti due colonne nascoste: Le colonne del giorno di inizio e della durata compito dell’attività nelle celle F5 e G5 sono calcolate automaticamente e usate per la creazione del Diagramma di Gantt nel foglio di lavoro Diagramma di Gantt. \nI dati di esempio si trovano nelle celle da B6 a E21. \nL'istruzione successiva si trova nella cella A22.","Posizione","Data di inizio","Data di fine","Attività cardine/Attività","Giorno di inizio","Durata compito"]
[null,1,{"$f":"TODAY()-10","v":"2018-08-06"},{"$f":"Milestones[[#This Row],[Data di inizio]]+10","v":"2018-08-16"},"Inizio",{"$f":"IFERROR(IF(OR(LEN(Milestones[[#This Row],[Data di inizio]])=0,LEN(Milestones[[#This Row],[Data di fine]])=0),\"\",INT(C6)-INT($C$6)),\"\")","v":0},{"$f":"IFERROR(IF(Milestones[[#This Row],[Giorno di inizio]]=0,DATEDIF(Milestones[[#This Row],[Data di inizio]],Milestones[[#This Row],[Data di fine]],\"d\")+1,IF(LEN(Milestones[[#This Row],[Giorno di inizio]])=0,\"\",DATEDIF(Milestones[[#This Row],[Data di inizio]],Milestones[[#This Row],[Data di fine]],\"d\")+1)),0)","v":11}]
[null,2,{"$f":"TODAY()+5","v":"2018-08-21"},{"$f":"Milestones[[#This Row],[Data di inizio]]+15","v":"2018-09-05"},{"$f":"\"Attività\"&\" \"&ROW($A2)","v":"Attività 2"},{"$f":"IFERROR(IF(OR(LEN(Milestones[[#This Row],[Data di inizio]])=0,LEN(Milestones[[#This Row],[Data di fine]])=0),\"\",INT(C7)-INT($C$6)),\"\")","v":15},{"$f":"IFERROR(IF(Milestones[[#This Row],[Giorno di inizio]]=0,DATEDIF(Milestones[[#This Row],[Data di inizio]],Milestones[[#This Row],[Data di fine]],\"d\")+1,IF(LEN(Milestones[[#This Row],[Giorno di inizio]])=0,\"\",DATEDIF(Milestones[[#This Row],[Data di inizio]],Milestones[[#This Row],[Data di fine]],\"d\")+1)),0)","v":16}]
[null,3,{"$f":"TODAY()-30","v":"2018-07-17"},{"$f":"Milestones[[#This Row],[Data di inizio]]+152","v":"2018-12-16"},"Attività 3",{"$f":"IFERROR(IF(OR(LEN(Milestones[[#This Row],[Data di inizio]])=0,LEN(Milestones[[#This Row],[Data di fine]])=0),\"\",INT(C8)-INT($C$6)),\"\")","v":{"v":-20,"d":"-20 "}},{"$f":"IFERROR(IF(Milestones[[#This Row],[Giorno di inizio]]=0,DATEDIF(Milestones[[#This Row],[Data di inizio]],Milestones[[#This Row],[Data di fine]],\"d\")+1,IF(LEN(Milestones[[#This Row],[Giorno di inizio]])=0,\"\",DATEDIF(Milestones[[#This Row],[Data di inizio]],Milestones[[#This Row],[Data di fine]],\"d\")+1)),0)","v":153}]
[null,4,{"$f":"TODAY()+2","v":"2018-08-18"},{"$f":"Milestones[[#This Row],[Data di inizio]]+150","v":"2019-01-15"},"Attività 4",{"$f":"IFERROR(IF(OR(LEN(Milestones[[#This Row],[Data di inizio]])=0,LEN(Milestones[[#This Row],[Data di fine]])=0),\"\",INT(C9)-INT($C$6)),\"\")","v":12},{"$f":"IFERROR(IF(Milestones[[#This Row],[Giorno di inizio]]=0,DATEDIF(Milestones[[#This Row],[Data di inizio]],Milestones[[#This Row],[Data di fine]],\"d\")+1,IF(LEN(Milestones[[#This Row],[Giorno di inizio]])=0,\"\",DATEDIF(Milestones[[#This Row],[Data di inizio]],Milestones[[#This Row],[Data di fine]],\"d\")+1)),0)","v":151}]
[null,5,{"$f":"TODAY()+15","v":"2018-08-31"},{"$f":"Milestones[[#This Row],[Data di inizio]]+14","v":"2018-09-14"},"Attività 5",{"$f":"IFERROR(IF(OR(LEN(Milestones[[#This Row],[Data di inizio]])=0,LEN(Milestones[[#This Row],[Data di fine]])=0),\"\",INT(C10)-INT($C$6)),\"\")","v":25},{"$f":"IFERROR(IF(Milestones[[#This Row],[Giorno di inizio]]=0,DATEDIF(Milestones[[#This Row],[Data di inizio]],Milestones[[#This Row],[Data di fine]],\"d\")+1,IF(LEN(Milestones[[#This Row],[Giorno di inizio]])=0,\"\",DATEDIF(Milestones[[#This Row],[Data di inizio]],Milestones[[#This Row],[Data di fine]],\"d\")+1)),0)","v":15}]
[null,6,{"$f":"TODAY()+30","v":"2018-09-15"},{"$f":"Milestones[[#This Row],[Data di inizio]]+45","v":"2018-10-30"},"Attività 6",{"$f":"IFERROR(IF(OR(LEN(Milestones[[#This Row],[Data di inizio]])=0,LEN(Milestones[[#This Row],[Data di fine]])=0),\"\",INT(C11)-INT($C$6)),\"\")","v":40},{"$f":"IFERROR(IF(Milestones[[#This Row],[Giorno di inizio]]=0,DATEDIF(Milestones[[#This Row],[Data di inizio]],Milestones[[#This Row],[Data di fine]],\"d\")+1,IF(LEN(Milestones[[#This Row],[Giorno di inizio]])=0,\"\",DATEDIF(Milestones[[#This Row],[Data di inizio]],Milestones[[#This Row],[Data di fine]],\"d\")+1)),0)","v":46}]
[null,7,{"$f":"TODAY()+45","v":"2018-09-30"},{"$f":"Milestones[[#This Row],[Data di inizio]]+56","v":"2018-11-25"},"Attività 7",{"$f":"IFERROR(IF(OR(LEN(Milestones[[#This Row],[Data di inizio]])=0,LEN(Milestones[[#This Row],[Data di fine]])=0),\"\",INT(C12)-INT($C$6)),\"\")","v":55},{"$f":"IFERROR(IF(Milestones[[#This Row],[Giorno di inizio]]=0,DATEDIF(Milestones[[#This Row],[Data di inizio]],Milestones[[#This Row],[Data di fine]],\"d\")+1,IF(LEN(Milestones[[#This Row],[Giorno di inizio]])=0,\"\",DATEDIF(Milestones[[#This Row],[Data di inizio]],Milestones[[#This Row],[Data di fine]],\"d\")+1)),0)","v":57}]
[null,8,{"$f":"TODAY()+60","v":"2018-10-15"},{"$f":"Milestones[[#This Row],[Data di inizio]]+30","v":"2018-11-14"},"Attività 8",{"$f":"IFERROR(IF(OR(LEN(Milestones[[#This Row],[Data di inizio]])=0,LEN(Milestones[[#This Row],[Data di fine]])=0),\"\",INT(C13)-INT($C$6)),\"\")","v":70},{"$f":"IFERROR(IF(Milestones[[#This Row],[Giorno di inizio]]=0,DATEDIF(Milestones[[#This Row],[Data di inizio]],Milestones[[#This Row],[Data di fine]],\"d\")+1,IF(LEN(Milestones[[#This Row],[Giorno di inizio]])=0,\"\",DATEDIF(Milestones[[#This Row],[Data di inizio]],Milestones[[#This Row],[Data di fine]],\"d\")+1)),0)","v":31}]
[null,9,{"$f":"TODAY()+37","v":"2018-09-22"},{"$f":"Milestones[[#This Row],[Data di inizio]]+22","v":"2018-10-14"},"Attività 9",{"$f":"IFERROR(IF(OR(LEN(Milestones[[#This Row],[Data di inizio]])=0,LEN(Milestones[[#This Row],[Data di fine]])=0),\"\",INT(C14)-INT($C$6)),\"\")","v":47},{"$f":"IFERROR(IF(Milestones[[#This Row],[Giorno di inizio]]=0,DATEDIF(Milestones[[#This Row],[Data di inizio]],Milestones[[#This Row],[Data di fine]],\"d\")+1,IF(LEN(Milestones[[#This Row],[Giorno di inizio]])=0,\"\",DATEDIF(Milestones[[#This Row],[Data di inizio]],Milestones[[#This Row],[Data di fine]],\"d\")+1)),0)","v":23}]
[null,10,{"$f":"TODAY()-20","v":"2018-07-27"},{"$f":"Milestones[[#This Row],[Data di inizio]]+160","v":"2019-01-03"},"Attività 10",{"$f":"IFERROR(IF(OR(LEN(Milestones[[#This Row],[Data di inizio]])=0,LEN(Milestones[[#This Row],[Data di fine]])=0),\"\",INT(C15)-INT($C$6)),\"\")","v":{"v":-10,"d":"-10 "}},{"$f":"IFERROR(IF(Milestones[[#This Row],[Giorno di inizio]]=0,DATEDIF(Milestones[[#This Row],[Data di inizio]],Milestones[[#This Row],[Data di fine]],\"d\")+1,IF(LEN(Milestones[[#This Row],[Giorno di inizio]])=0,\"\",DATEDIF(Milestones[[#This Row],[Data di inizio]],Milestones[[#This Row],[Data di fine]],\"d\")+1)),0)","v":161}]
[null,11,{"$f":"TODAY()+20","v":"2018-09-05"},{"$f":"Milestones[[#This Row],[Data di inizio]]+65","v":"2018-11-09"},"Attività 11",{"$f":"IFERROR(IF(OR(LEN(Milestones[[#This Row],[Data di inizio]])=0,LEN(Milestones[[#This Row],[Data di fine]])=0),\"\",INT(C16)-INT($C$6)),\"\")","v":30},{"$f":"IFERROR(IF(Milestones[[#This Row],[Giorno di inizio]]=0,DATEDIF(Milestones[[#This Row],[Data di inizio]],Milestones[[#This Row],[Data di fine]],\"d\")+1,IF(LEN(Milestones[[#This Row],[Giorno di inizio]])=0,\"\",DATEDIF(Milestones[[#This Row],[Data di inizio]],Milestones[[#This Row],[Data di fine]],\"d\")+1)),0)","v":66}]
[null,12,{"$f":"TODAY()+70","v":"2018-10-25"},{"$f":"Milestones[[#This Row],[Data di inizio]]+67","v":"2018-12-31"},"Attività 12",{"$f":"IFERROR(IF(OR(LEN(Milestones[[#This Row],[Data di inizio]])=0,LEN(Milestones[[#This Row],[Data di fine]])=0),\"\",INT(C17)-INT($C$6)),\"\")","v":80},{"$f":"IFERROR(IF(Milestones[[#This Row],[Giorno di inizio]]=0,DATEDIF(Milestones[[#This Row],[Data di inizio]],Milestones[[#This Row],[Data di fine]],\"d\")+1,IF(LEN(Milestones[[#This Row],[Giorno di inizio]])=0,\"\",DATEDIF(Milestones[[#This Row],[Data di inizio]],Milestones[[#This Row],[Data di fine]],\"d\")+1)),0)","v":68}]
[null,13,{"$f":"TODAY()+90","v":"2018-11-14"},{"$f":"Milestones[[#This Row],[Data di inizio]]+14","v":"2018-11-28"},"Attività 13",{"$f":"IFERROR(IF(OR(LEN(Milestones[[#This Row],[Data di inizio]])=0,LEN(Milestones[[#This Row],[Data di fine]])=0),\"\",INT(C18)-INT($C$6)),\"\")","v":100},{"$f":"IFERROR(IF(Milestones[[#This Row],[Giorno di inizio]]=0,DATEDIF(Milestones[[#This Row],[Data di inizio]],Milestones[[#This Row],[Data di fine]],\"d\")+1,IF(LEN(Milestones[[#This Row],[Giorno di inizio]])=0,\"\",DATEDIF(Milestones[[#This Row],[Data di inizio]],Milestones[[#This Row],[Data di fine]],\"d\")+1)),0)","v":15}]
[null,14,{"$f":"TODAY()+100","v":"2018-11-24"},{"$f":"Milestones[[#This Row],[Data di inizio]]+3","v":"2018-11-27"},"Attività 14",{"$f":"IFERROR(IF(OR(LEN(Milestones[[#This Row],[Data di inizio]])=0,LEN(Milestones[[#This Row],[Data di fine]])=0),\"\",INT(C19)-INT($C$6)),\"\")","v":110},{"$f":"IFERROR(IF(Milestones[[#This Row],[Giorno di inizio]]=0,DATEDIF(Milestones[[#This Row],[Data di inizio]],Milestones[[#This Row],[Data di fine]],\"d\")+1,IF(LEN(Milestones[[#This Row],[Giorno di inizio]])=0,\"\",DATEDIF(Milestones[[#This Row],[Data di inizio]],Milestones[[#This Row],[Data di fine]],\"d\")+1)),0)","v":4}]
[null,15,{"$f":"TODAY()+50","v":"2018-10-05"},{"$f":"Milestones[[#This Row],[Data di inizio]]+130","v":"2019-02-12"},"Attività 15",{"$f":"IFERROR(IF(OR(LEN(Milestones[[#This Row],[Data di inizio]])=0,LEN(Milestones[[#This Row],[Data di fine]])=0),\"\",INT(C20)-INT($C$6)),\"\")","v":60},{"$f":"IFERROR(IF(Milestones[[#This Row],[Giorno di inizio]]=0,DATEDIF(Milestones[[#This Row],[Data di inizio]],Milestones[[#This Row],[Data di fine]],\"d\")+1,IF(LEN(Milestones[[#This Row],[Giorno di inizio]])=0,\"\",DATEDIF(Milestones[[#This Row],[Data di inizio]],Milestones[[#This Row],[Data di fine]],\"d\")+1)),0)","v":131}]
[{"$nulls":5},{"$f":"IFERROR(IF(OR(LEN(Milestones[[#This Row],[Data di inizio]])=0,LEN(Milestones[[#This Row],[Data di fine]])=0),\"\",INT(C21)-INT($C$6)),\"\")","v":""},{"$f":"IFERROR(IF(Milestones[[#This Row],[Giorno di inizio]]=0,DATEDIF(Milestones[[#This Row],[Data di inizio]],Milestones[[#This Row],[Data di fine]],\"d\")+1,IF(LEN(Milestones[[#This Row],[Giorno di inizio]])=0,\"\",DATEDIF(Milestones[[#This Row],[Data di inizio]],Milestones[[#This Row],[Data di fine]],\"d\")+1)),0)","v":""}]
["Per aggiungere altre attività cardine/attività, inserire nuove righe sopra a questa.\nQuesta è l'ultima istruzione in questo foglio di lavoro.","Per aggiungere altre attività cardine/attività, inserire nuove righe sopra a questa"]

{"sheet":"Diagramma di Gantt","index":1,"n_rows":1,"n_cols":1,"rows_kept":1}
["Il diagramma di Gantt con una barra di scorrimento si trova in questo foglio di lavoro. \nLa barra di scorrimento inizia nella cella B29.\nQuesta è l'ultima istruzione in questo foglio di lavoro."]

{"sheet":"Informazioni","index":2,"n_rows":6,"n_cols":1,"rows_kept":6}
["Informazioni su questa cartella di lavoro"]
["\nImmettere i dati nel foglio di lavoro Registro progetti, quindi scorrere la rappresentazione visiva della sequenza temporale nel foglio di lavoro Diagramma di Gantt. \n"]
["La colonna della posizione nel foglio di lavoro Registro progetti consente di creare grafici delle attività cardine e delle attività su righe separate. È possibile, ad esempio, che due attività cardine/attività inizino nello stesso giorno e vengano eseguite in parallelo. Se avessero la stesso valore di posizione, si sovrapporrebbero nel grafico. Fornire due valori univoci per creare i grafici su due linee separate. Provare.\n\nAlla fine del grafico si potrebbero notare indicatori senza testo e durata impostati in una specifica linea temporale. Quando l’ultima attività cardine scorre fuori dal grafico, questi indicatori segnalano la fine delle attività cardine del Registro progetti di cui creare il grafico. Scorrere indietro o tornare all’inizio per visualizzare le attività cardine di cui è possibile creare il grafico.\n"]
["Guida per le utilità per la lettura dello schermo"]
["Questa cartella di lavoro contiene 4 fogli di lavoro. \n\nRegistro progetti\nDiagramma di Gantt\nInformazioni\nDati grafico dinamici (nascosto)\n\nLe istruzioni per ogni foglio di lavoro si trovano nella colonna A a partire dalla cella A1 di ogni foglio di lavoro. Sono scritte con testo nascosto. Ogni passaggio descrive le informazioni presenti nella riga corrispondente. Ogni passaggio successivo continua nella cella A2, A3 e così via, salvo diversa indicazione esplicita. Ad esempio, l'istruzione potrebbe indicare di \"passare alla cella A6\" per il passaggio successivo. \n\nIl testo nascosto non verrà stampato.\n\nPer rimuovere queste istruzioni da un foglio di lavoro, è sufficiente eliminare la colonna A.\n"]
["Questa è l'ultima istruzione in questo foglio di lavoro."]

{"sheet":"Dati grafico dinamici nascosto","index":3,"n_rows":10,"n_cols":6,"rows_kept":10,"hidden":true}
["Il titolo di questo foglio di lavoro si trova nella cella B1.","Dati grafico dinamici"]
["L’intestazione di incremento scorrimento orizzontale si trova nella cella B2.\nPer incrementare manualmente i dati, immettere un nuovo valore nella cella B3.\nLa pagina che scorre si aggiorna automaticamente quando la barra di scorrimento passa alla pagina successiva o precedente del foglio di lavoro Diagramma di Gantt.","incremento scorrimento orizzontale"]
["Il valore di scorrimento del Diagramma di Gantt aggiornato automaticamente si trova nella cella B3.",0]
["Il titolo della tabella si trova nella cella B4.","Tabella dei dati dinamici"]
["Le intestazioni di tabella si trovano nelle celle da B5 a E5. \nUna nota si trova nella cella F5.\nQuesta tabella contiene i grafici di massimo 5 attività cardine alla volta. \nNon modificare o eliminare questo foglio di lavoro o il suo contenuto.","attività cardine","data","Giorno di inizio","durata","<--grafici di massimo 5 attività cardine alla volta"]
[null,{"$f":"IFERROR(IF(LEN(OFFSET('Registro progetti'!$E6,$B$3,0,1,1))=0,\"\",INDEX(Milestones[],'Registro progetti'!$B6+$B$3,4)),\"\")","v":"Inizio"},{"$f":"IFERROR(IF(LEN(OFFSET('Registro progetti'!$C6,$B$3,0,1,1))=0,End_Date,INDEX(Milestones[],'Registro progetti'!$B6+$B$3,2)),\"\")","v":"2018-08-06"},{"$f":"IFERROR(IF(LEN(OFFSET('Registro progetti'!$F6,$B$3,0,1,1))=0,\"\",INDEX(Milestones[],'Registro progetti'!$B6+$B$3,5)),\"\")","v":0},{"$f":"IFERROR(IF(LEN(OFFSET('Registro progetti'!$G6,$B$3,0,1,1))=0,\"\",INDEX(Milestones[],'Registro progetti'!$B6+$B$3,6)),\"\")","v":11}]
[null,{"$f":"IFERROR(IF(LEN(OFFSET('Registro progetti'!$E7,$B$3,0,1,1))=0,\"\",INDEX(Milestones[],'Registro progetti'!$B7+$B$3,4)),\"\")","v":"Attività 2"},{"$f":"IFERROR(IF(LEN(OFFSET('Registro progetti'!$C7,$B$3,0,1,1))=0,End_Date,INDEX(Milestones[],'Registro progetti'!$B7+$B$3,2)),\"\")","v":"2018-08-21"},{"$f":"IFERROR(IF(LEN(OFFSET('Registro progetti'!$F7,$B$3,0,1,1))=0,\"\",INDEX(Milestones[],'Registro progetti'!$B7+$B$3,5)),\"\")","v":15},{"$f":"IFERROR(IF(LEN(OFFSET('Registro progetti'!$G7,$B$3,0,1,1))=0,\"\",INDEX(Milestones[],'Registro progetti'!$B7+$B$3,6)),\"\")","v":16}]
[null,{"$f":"IFERROR(IF(LEN(OFFSET('Registro progetti'!$E8,$B$3,0,1,1))=0,\"\",INDEX(Milestones[],'Registro progetti'!$B8+$B$3,4)),\"\")","v":"Attività 3"},{"$f":"IFERROR(IF(LEN(OFFSET('Registro progetti'!$C8,$B$3,0,1,1))=0,End_Date,INDEX(Milestones[],'Registro progetti'!$B8+$B$3,2)),\"\")","v":"2018-07-17"},{"$f":"IFERROR(IF(LEN(OFFSET('Registro progetti'!$F8,$B$3,0,1,1))=0,\"\",INDEX(Milestones[],'Registro progetti'!$B8+$B$3,5)),\"\")","v":-20},{"$f":"IFERROR(IF(LEN(OFFSET('Registro progetti'!$G8,$B$3,0,1,1))=0,\"\",INDEX(Milestones[],'Registro progetti'!$B8+$B$3,6)),\"\")","v":153}]
[null,{"$f":"IFERROR(IF(LEN(OFFSET('Registro progetti'!$E9,$B$3,0,1,1))=0,\"\",INDEX(Milestones[],'Registro progetti'!$B9+$B$3,4)),\"\")","v":"Attività 4"},{"$f":"IFERROR(IF(LEN(OFFSET('Registro progetti'!$C9,$B$3,0,1,1))=0,End_Date,INDEX(Milestones[],'Registro progetti'!$B9+$B$3,2)),\"\")","v":"2018-08-18"},{"$f":"IFERROR(IF(LEN(OFFSET('Registro progetti'!$F9,$B$3,0,1,1))=0,\"\",INDEX(Milestones[],'Registro progetti'!$B9+$B$3,5)),\"\")","v":12},{"$f":"IFERROR(IF(LEN(OFFSET('Registro progetti'!$G9,$B$3,0,1,1))=0,\"\",INDEX(Milestones[],'Registro progetti'!$B9+$B$3,6)),\"\")","v":151}]
[null,{"$f":"IFERROR(IF(LEN(OFFSET('Registro progetti'!$E10,$B$3,0,1,1))=0,\"\",INDEX(Milestones[],'Registro progetti'!$B10+$B$3,4)),\"\")","v":"Attività 5"},{"$f":"IFERROR(IF(LEN(OFFSET('Registro progetti'!$C10,$B$3,0,1,1))=0,End_Date,INDEX(Milestones[],'Registro progetti'!$B10+$B$3,2)),\"\")","v":"2018-08-31"},{"$f":"IFERROR(IF(LEN(OFFSET('Registro progetti'!$F10,$B$3,0,1,1))=0,\"\",INDEX(Milestones[],'Registro progetti'!$B10+$B$3,5)),\"\")","v":25},{"$f":"IFERROR(IF(LEN(OFFSET('Registro progetti'!$G10,$B$3,0,1,1))=0,\"\",INDEX(Milestones[],'Registro progetti'!$B10+$B$3,6)),\"\")","v":15}]